bitfinex/quotes_BTCUSD_20241009
["timestamp","ask_amount","ask_price","bid_price","bid_amount"]
[1728472368522,0.51955504,62222.0,62221.0,0.19114077]
[1728472368738,0.51955504,62222.0,62221.0,0.09114077]
[1728472369408,0.51955504,62222.0,62221.0,0.19114077]
[1728472371434,0.51955504,62222.0,62221.0,0.18981324]
[1728472372285,0.51955504,62222.0,62221.0,0.11760988]
[1728472372494,0.51955504,62222.0,62221.0,0.01760988]
[1728472372704,0.61815504,62222.0,62221.0,0.01760988]
[1728472375492,0.61815504,62222.0,62221.0,0.00256363]
[1728472375698,0.61715504,62222.0,62221.0,0.01760698]
[1728472376407,0.61515504,62222.0,62221.0,0.01760698]
[1728472376643,0.61815504,62222.0,62221.0,0.01760698]
[1728472377279,0.61615504,62222.0,62221.0,0.11760698]
[1728472377500,0.61815504,62222.0,62221.0,0.11760698]
[1728472378389,0.61815504,62222.0,62221.0,0.01760698]
[1728472379067,0.61815504,62222.0,62221.0,0.01760993]
[1728472381441,0.61815504,62222.0,62221.0,0.01760833]
[1728472382835,0.61815504,62222.0,62221.0,0.00256363]
[1728472383493,0.69435504,62222.0,62221.0,0.00256363]
[1728472403834,0.81578937,62222.0,62221.0,0.00256363]
[1728472404587,0.69435504,62222.0,62221.0,0.00256363]
[1728472411140,0.61815504,62222.0,62221.0,0.00256363]
[1728472420875,0.70065504,62222.0,62221.0,0.00256363]
[1728472422950,0.70432751,62222.0,62221.0,0.00256363]
[1728472423430,0.80084051,62222.0,62221.0,0.00256363]
[1728472423903,0.70432751,62222.0,62221.0,0.00256363]
[1728472424119,0.70232751,62222.0,62221.0,0.00256363]
[1728472424347,0.80282079,62222.0,62221.0,0.00256363]
[1728472424598,0.80182079,62222.0,62221.0,0.00256363]
[1728472424825,0.79782079,62222.0,62221.0,0.01056363]
[1728472425246,0.79782079,62222.0,62221.0,0.01756363]
[1728472425463,0.70132751,62222.0,62221.0,0.01756363]
[1728472425675,0.70132751,62222.0,62221.0,0.00956363]
[1728472426100,0.70132751,62222.0,62221.0,0.01656363]
[1728472426525,0.79778258,62222.0,62221.0,0.01656363]
[1728472429442,0.70132751,62222.0,62221.0,0.01656363]
[1728472430558,0.77363209,62222.0,62221.0,0.01656363]
[1728472431397,0.77363139,62222.0,62221.0,0.01656363]
[1728472431818,0.77341214,62222.0,62221.0,0.01656363]
[1728472434308,0.70110826,62222.0,62221.0,0.01656363]
[1728472434566,0.77341214,62222.0,62221.0,0.01656363]
[1728472434774,0.70110826,62222.0,62221.0,0.01656363]
[1728472435221,0.77341214,62222.0,62221.0,0.01656363]
[1728472435423,0.70110826,62222.0,62221.0,0.01656363]
[1728472438376,0.74928698,62222.0,62221.0,0.01656363]
[1728472443899,0.70110826,62222.0,62221.0,0.01656363]
[1728472444154,0.79747805,62222.0,62221.0,0.01656363]
[1728472444325,0.80247805,62222.0,62221.0,0.01656363]
[1728472444589,0.79747805,62222.0,62221.0,0.01656362]
[1728472444796,0.80247805,62222.0,62221.0,0.01656362]
[1728472444980,0.80245439,62222.0,62221.0,0.01656362]
[1728472445708,0.80244906,62222.0,62221.0,0.01656362]
[1728472446136,0.2260068,62220.0,62219.0,0.00164]
[1728472446401,0.30674426,62220.0,62219.0,0.00164]
[1728472446873,0.30474426,62220.0,62219.0,0.00164]
[1728472447084,0.41035197,62220.0,62219.0,0.00164]
[1728472447275,0.40661451,62220.0,62219.0,0.00164]
[1728472447961,0.40661451,62220.0,62219.0,0.00464]
[1728472448612,0.40661451,62220.0,62219.0,0.00764]
[1728472449271,0.31027861,62220.0,62219.0,0.00764]
[1728472449483,0.31401607,62220.0,62219.0,0.00764]
[1728472455117,0.38623873,62220.0,62219.0,0.00764]
[1728472455325,0.22827861,62220.0,62219.0,0.00764]
[1728472455526,0.23201607,62220.0,62219.0,0.00764]
[1728472456642,0.30424085,62220.0,62219.0,0.00764]
[1728472457246,0.23201607,62220.0,62219.0,0.00764]
[1728472457925,0.30424085,62220.0,62219.0,0.00764]
[1728472458572,0.23201607,62220.0,62219.0,0.00764]
[1728472458805,0.30424085,62220.0,62219.0,0.00764]
[1728472460865,0.30426326,62220.0,62219.0,0.00764]
[1728472461542,0.23201607,62220.0,62219.0,0.00764]
[1728472461766,0.01668174,62220.0,62219.0,0.00764]
[1728472461978,0.01294428,62220.0,62219.0,0.00764]
[1728472462214,0.01668174,62220.0,62219.0,0.17914]
[1728472462440,0.01294428,62220.0,62219.0,0.17914]
[1728472463107,0.01294428,62220.0,62219.0,0.17614]
[1728472463612,0.01294428,62220.0,62219.0,0.17914]
[1728472464063,0.01294428,62220.0,62219.0,0.17614]
[1728472464279,0.01294428,62220.0,62219.0,0.17314]
[1728472464493,0.01294428,62220.0,62219.0,0.17814]
[1728472465724,0.01294428,62220.0,62219.0,0.18314]
[1728472494211,0.01294428,62220.0,62219.0,0.08764]
[1728472495484,0.01294428,62220.0,62219.0,0.08825609]
[1728472500251,0.01294428,62220.0,62219.0,0.01225609]
[1728472513826,0.13437861,62220.0,62219.0,0.01225609]
[1728472520282,0.18260731,62220.0,62219.0,0.01225609]
[1728472521640,0.13437861,62220.0,62219.0,0.01225609]
[1728472522114,0.13437861,62220.0,62219.0,0.18225609]
[1728472522549,0.0575403,62220.0,62219.0,0.18225609]
[1728472522813,0.00927181,62220.0,62219.0,0.18225609]
[1728472524535,0.00927181,62220.0,62219.0,0.17725609]
[1728472524751,0.00927181,62220.0,62219.0,0.17225609]
[1728472524966,0.00927181,62220.0,62219.0,0.17725609]
[1728472525167,0.00927181,62220.0,62219.0,0.18525609]
[1728472525168,0.01027181,62220.0,62219.0,0.18525609]
[1728472525419,0.01027181,62220.0,62219.0,0.18025609]
[1728472526328,0.01127181,62220.0,62219.0,0.18825609]
[1728472529688,0.01127181,62220.0,62219.0,0.28825609]
[1728472529933,0.01127181,62220.0,62219.0,0.29025609]
[1728472530166,0.002,62220.0,62219.0,0.28825609]
[1728472530409,0.002,62220.0,62219.0,0.31231102]
[1728472530893,0.002,62220.0,62219.0,0.31685266]
[1728472531132,0.002,62220.0,62219.0,0.38905092]
[1728472531370,0.002,62220.0,62219.0,0.38584797]
[1728472531627,0.001,62220.0,62219.0,0.35570386]
[1728472531863,0.00082,62221.0,62220.0,0.00332753]
[1728472532141,0.00082,62221.0,62220.0,0.32219201]
[1728472532381,0.00082,62221.0,62220.0,0.31897795]
[1728472532623,0.00082,62221.0,62220.0,0.44594284]
[1728472533323,0.00082,62221.0,62220.0,0.46999819]
[1728472533557,0.00082,62221.0,62220.0,0.39787795]
[1728472534489,0.00082,62221.0,62220.0,0.44591495]
[1728472535161,0.00082,62221.0,62220.0,0.44691495]
[1728472535643,0.00082,62221.0,62220.0,0.39887795]
[1728472538076,0.00082,62221.0,62220.0,0.39787795]
[1728472538319,0.00082,62221.0,62220.0,0.62922195]
[1728472538566,0.00082,62221.0,62220.0,0.51691118]
[1728472538817,0.00082,62221.0,62220.0,1.81363648]
[1728472539478,0.00082,62221.0,62220.0,1.69559495]
[1728472539709,0.00082,62221.0,62220.0,1.66035595]
[1728472540201,0.00082,62221.0,62220.0,1.31962095]
[1728472540443,0.00082,62221.0,62220.0,1.29446995]
[1728472540660,0.00082,62221.0,62220.0,1.39036872]
[1728472541148,0.00082,62221.0,62220.0,1.39236872]
[1728472541378,0.50058218,62222.0,62221.0,0.02632753]
[1728472541605,0.49113382,62222.0,62221.0,2.9518058]
[1728472541875,0.49113382,62222.0,62221.0,2.97576229]
[1728472542099,0.49113382,62222.0,62221.0,2.87990561]
[1728472542287,0.45823381,62222.0,62221.0,2.97575719]
[1728472542512,0.45823381,62222.0,62221.0,2.87990561]
[1728472542736,0.45823381,62222.0,62221.0,2.95177968]
[1728472542959,0.45823381,62222.0,62221.0,3.02957968]
[1728472543398,0.45823381,62222.0,62221.0,3.03057968]
[1728472543626,0.45823381,62222.0,62221.0,3.06162499]
[1728472544090,0.45823381,62222.0,62221.0,3.06160306]
[1728472544386,0.45823381,62222.0,62221.0,3.03055775]
[1728472544584,0.45823381,62222.0,62221.0,2.99396443]
[1728472546438,0.45823381,62222.0,62221.0,2.96291912]
[1728472546667,0.45823381,62222.0,62221.0,3.01079685]
[1728472547132,0.45823381,62222.0,62221.0,3.00879685]
[1728472547359,0.45823381,62222.0,62221.0,3.01079685]
[1728472547601,0.45823381,62222.0,62221.0,3.01079695]
[1728472548494,0.45823381,62222.0,62221.0,2.96291912]
[1728472550721,0.45823381,62222.0,62221.0,3.01076991]
[1728472551180,0.45823381,62222.0,62221.0,2.96291912]
[1728472551399,0.45823381,62222.0,62221.0,3.01076991]
[1728472551625,0.45823381,62222.0,62221.0,3.01076703]
[1728472551626,0.43999828,62222.0,62221.0,3.01076703]
[1728472551851,0.43999828,62222.0,62221.0,2.96291912]
[1728472553822,0.43999828,62222.0,62221.0,3.08435345]
[1728472554439,0.40485828,62222.0,62221.0,3.08435345]
[1728472555428,0.36344828,62222.0,62221.0,3.08435345]
[1728472556187,0.25902828,62222.0,62221.0,3.08435345]
[1728472556528,0.25902828,62222.0,62221.0,3.40419845]
[1728472556946,0.25902828,62222.0,62221.0,3.38004645]
[1728472557379,0.25002828,62222.0,62221.0,3.38004645]
[1728472557807,0.25002828,62222.0,62221.0,3.06341545]
[1728472558421,0.20922328,62222.0,62221.0,3.06341545]
[1728472561026,0.14056328,62222.0,62221.0,3.06341545]
[1728472561817,0.13156328,62222.0,62221.0,3.06341545]
[1728472562176,0.13156328,62222.0,62221.0,0.75610212]
[1728472562363,0.13156328,62222.0,62221.0,0.52654611]
[1728472563574,0.13156328,62222.0,62221.0,0.54954611]
[1728472566429,0.13156328,62222.0,62221.0,0.55118611]
[1728472566919,0.13156328,62222.0,62221.0,0.30929711]
[1728472567155,0.13156328,62222.0,62221.0,1.01338011]
[1728472567415,0.13156328,62222.0,62221.0,0.86804111]
[1728472568620,0.13156328,62222.0,62221.0,0.91589268]
[1728472568869,0.13156328,62222.0,62221.0,0.87957168]
[1728472569103,0.13156328,62222.0,62221.0,0.69599111]
[1728472569855,0.13156328,62222.0,62221.0,0.61819111]
[1728472570076,0.13156328,62222.0,62221.0,0.62019111]
[1728472570567,0.13156328,62222.0,62221.0,0.68996847]
[1728472570801,0.13156328,62222.0,62221.0,0.68913823]
[1728472571027,0.13156328,62222.0,62221.0,0.76719976]
[1728472571963,0.13156328,62222.0,62221.0,0.67127027]
[1728472572676,0.13156328,62222.0,62221.0,0.79118213]
[1728472573153,0.13156328,62222.0,62221.0,0.71356713]
[1728472573394,0.13156328,62222.0,62221.0,0.59365527]
[1728472573639,0.13156328,62222.0,62221.0,0.69056713]
[1728472574558,0.13156328,62222.0,62221.0,0.57065527]
[1728472576575,0.13156328,62222.0,62221.0,0.01179711]
[1728472576576,0.23076328,62222.0,62221.0,0.01179711]
[1728472576805,0.23076328,62222.0,62221.0,0.2079284]
[1728472577239,0.23076328,62222.0,62221.0,0.2059284]
[1728472577952,0.23076328,62222.0,62221.0,0.2039284]
[1728472578870,0.31316328,62222.0,62221.0,0.20260087]
[1728472579113,0.31316328,62222.0,62221.0,0.10846958]
[1728472579360,0.323448,62222.0,62221.0,0.00846958]
[1728472579610,0.323448,62222.0,62221.0,0.00646958]
[1728472587100,0.141848,62222.0,62221.0,0.00646958]
[1728472587306,0.141848,62222.0,62221.0,0.05584082]
[1728472587531,0.141848,62222.0,62221.0,0.00646958]
[1728472587771,0.238348,62222.0,62221.0,0.10646958]
[1728472588761,0.238348,62222.0,62221.0,0.00646958]
[1728472591811,0.238348,62222.0,62221.0,0.00646958]
[1728472593036,0.238348,62222.0,62221.0,0.05449546]
[1728472594181,0.238348,62222.0,62221.0,0.00646958]
[1728472594419,0.238348,62222.0,62221.0,0.15448443]
[1728472595124,0.238348,62222.0,62221.0,0.10646958]
[1728472595563,0.238348,62222.0,62221.0,0.00646958]
[1728472596760,0.238348,62222.0,62221.0,0.10646958]
[1728472597279,0.141848,62222.0,62221.0,0.10646958]
[1728472597530,0.141848,62222.0,62221.0,0.15447068]
[1728472598492,0.141848,62222.0,62221.0,0.10646958]
[1728472599252,0.141848,62222.0,62221.0,0.15447068]
[1728472599958,0.141848,62222.0,62221.0,0.05447068]
[1728472600437,0.141848,62222.0,62221.0,0.05579821]
[1728472600673,0.141848,62222.0,62221.0,0.00779711]
[1728472600906,0.141848,62222.0,62221.0,0.15580454]
[1728472601857,0.141848,62222.0,62221.0,0.10779711]
[1728472602082,0.141848,62222.0,62221.0,0.05580454]
[1728472602336,0.141848,62222.0,62221.0,0.15580454]
[1728472603262,0.141848,62222.0,62221.0,0.05580454]
[1728472603496,0.141848,62222.0,62221.0,0.00779711]
[1728472603726,0.141848,62222.0,62221.0,0.05580454]
[1728472605675,0.141848,62222.0,62221.0,0.00646958]
[1728472605890,0.141848,62222.0,62221.0,0.15449722]
[1728472606333,0.141848,62222.0,62221.0,0.10646958]
[1728472606998,0.141848,62222.0,62221.0,0.00646958]
[1728472608287,0.141848,62222.0,62221.0,0.05449722]
[1728472608884,0.141848,62222.0,62221.0,0.15449722]
[1728472609121,0.141848,62222.0,62221.0,0.05449722]
[1728472610706,0.141848,62222.0,62221.0,0.15449722]
[1728472612065,0.141848,62222.0,62221.0,0.05449722]
[1728472613145,0.238848,62222.0,62221.0,0.05449722]
[1728472613363,0.238848,62222.0,62221.0,0.00646958]
[1728472614758,0.314548,62222.0,62221.0,0.00646958]
[1728472614993,0.31828546,62222.0,62221.0,0.00646958]
[1728472615930,0.314548,62222.0,62221.0,0.00646958]
[1728472622726,0.238848,62222.0,62221.0,0.00646958]
[1728472622930,0.141848,62222.0,62221.0,0.00646958]
[1728472625821,0.141848,62222.0,62221.0,0.00846958]
[1728472626031,0.141848,62222.0,62221.0,0.00646958]
[1728472627383,0.141848,62222.0,62221.0,0.12792462]
[1728472627591,0.141848,62222.0,62221.0,0.32582462]
[1728472627833,0.141848,62222.0,62221.0,0.20769711]
[1728472630008,0.141848,62222.0,62221.0,0.20569711]
[1728472630230,0.141848,62222.0,62221.0,0.20769711]
[1728472631841,0.141848,62222.0,62221.0,0.28799711]
[1728472634414,0.04090926,62222.0,62221.0,0.84596711]
[1728472634555,0.04090926,62222.0,62221.0,0.96740144]
[1728472634797,0.04090926,62222.0,62221.0,0.99040144]
[1728472635001,0.03062454,62222.0,62221.0,1.1104506]
[1728472636496,0.03062454,62222.0,62221.0,0.99040144]
[1728472637743,0.03062454,62222.0,62221.0,1.06241639]
[1728472637981,0.03062454,62222.0,62221.0,0.00779711]
[1728472639102,0.03062454,62222.0,62221.0,0.00646958]
[1728472639836,0.04092263,62222.0,62221.0,0.00646958]
[1728472643917,0.04092263,62222.0,62221.0,0.02146664]
[1728472644594,0.04092263,62222.0,62221.0,0.02146603]
[1728472646190,0.03062454,62222.0,62221.0,0.02146603]
[1728472647541,0.04092238,62222.0,62221.0,0.02146603]
[1728472647758,0.03062454,62222.0,62221.0,0.02146603]
[1728472647954,0.04092238,62222.0,62221.0,0.02146827]
[1728472648185,0.03062454,62222.0,62221.0,0.02146827]
[1728472648410,0.04092238,62222.0,62221.0,0.02146827]
[1728472648693,0.03062454,62222.0,62221.0,0.02146827]
[1728472648910,0.04092238,62222.0,62221.0,0.02146827]
[1728472650736,0.04092238,62222.0,62221.0,0.00646958]
[1728472673977,0.13162238,62222.0,62221.0,0.00646958]
[1728472678253,0.13562238,62222.0,62221.0,0.00746958]
[1728472679817,0.13929485,62222.0,62221.0,0.00746958]
[1728472686540,0.13929485,62222.0,62221.0,0.00325607]
[1728472695023,0.26072918,62222.0,62221.0,0.00325607]
[1728472695746,0.17002918,62222.0,62221.0,0.00325607]
[1728472701888,0.17376664,62222.0,62221.0,0.00325607]
[1728472704903,0.05233231,62222.0,62221.0,0.00325607]
[1728472712008,0.04859485,62222.0,62221.0,0.00325607]
[1728472712348,0.04859485,62222.0,62221.0,0.01829712]
[1728472713014,0.04492238,62222.0,62221.0,0.01829712]
[1728472718325,0.04492238,62222.0,62221.0,0.00325607]
[1728472718997,0.04492238,62222.0,62221.0,0.01829748]
[1728472719707,0.04492238,62222.0,62221.0,0.00325607]
[1728472720684,0.13989485,62222.0,62221.0,0.00325607]
[1728472730571,0.26132918,62222.0,62221.0,0.00225607]
[1728472730834,0.25732918,62222.0,62221.0,0.00225607]
[1728472731074,0.26032918,62222.0,62221.0,0.00325607]
[1728472731556,0.25932918,62222.0,62221.0,0.00325607]
[1728472731803,0.33752918,62222.0,62221.0,0.00525607]
[1728472732314,0.3857678,62222.0,62221.0,0.00525607]
[1728472732794,0.33552918,62222.0,62221.0,0.00425607]
[1728472733020,0.33552918,62222.0,62221.0,0.00625607]
[1728472736885,0.33552918,62222.0,62221.0,0.00425607]
[1728472737359,0.33552918,62222.0,62221.0,0.00225607]
[1728472737828,0.33652918,62222.0,62221.0,0.01325607]
[1728472739012,0.33752918,62222.0,62221.0,0.02425607]
[1728472743324,0.40989023,62222.0,62221.0,0.02425607]
[1728472743544,0.43401059,62222.0,62221.0,0.02425607]
[1728472744631,0.40987148,62222.0,62221.0,0.02425607]
[1728472744904,0.40986985,62222.0,62221.0,0.02425607]
[1728472746787,0.43898341,62222.0,62221.0,0.02425607]
[1728472746985,0.46309696,62222.0,62221.0,0.02425607]
[1728472747192,0.34252918,62222.0,62221.0,0.02425607]
[1728472747399,0.4630614,62222.0,62221.0,0.02425607]
[1728472747604,0.67702817,62222.0,62221.0,0.01325607]
[1728472747809,0.67702817,62222.0,62221.0,0.01725607]
[1728472748435,0.67702817,62222.0,62221.0,0.01325607]
[1728472748653,0.67602817,62222.0,62221.0,0.00525607]
[1728472748884,0.68006947,62222.0,62221.0,0.00525607]
[1728472749133,0.68006947,62222.0,62221.0,0.00925607]
[1728472749357,0.55953725,62222.0,62221.0,0.00525607]
[1728472749585,0.55953725,62222.0,62221.0,0.00825607]
[1728472751399,0.65590896,62222.0,62221.0,0.00825607]
[1728472752833,0.55953725,62222.0,62221.0,0.00825607]
[1728472753775,0.55953725,62222.0,62221.0,0.00225607]
[1728472754997,0.56253725,62222.0,62221.0,0.00225607]
[1728472755237,0.6829424,62222.0,62221.0,0.00225607]
[1728472755468,0.6849424,62222.0,62221.0,0.00225607]
[1728472755694,0.6829424,62222.0,62221.0,0.00225607]
[1728472756152,0.6859424,62222.0,62221.0,0.00225607]
[1728472756897,0.46693433,62222.0,62221.0,0.00225607]
[1728472757117,0.67431475,62222.0,62221.0,0.00225607]
[1728472757577,0.5539096,62222.0,62221.0,0.00225607]
[1728472760257,0.57909952,62222.0,62221.0,0.00225607]
[1728472760498,0.67538818,62222.0,62221.0,0.00225607]
[1728472761922,0.65019826,62222.0,62221.0,0.00225607]
[1728472764796,0.65020879,62222.0,62221.0,0.00225607]
[1728472765176,0.63762826,62222.0,62221.0,0.00225607]
[1728472765401,0.54132907,62222.0,62221.0,0.00225607]
[1728472769543,0.66170305,62222.0,62221.0,0.00225607]
[1728472770195,0.54132907,62222.0,62221.0,0.00225607]
[1728472770630,0.66173639,62222.0,62221.0,0.00225607]
[1728472770815,0.54132907,62222.0,62221.0,0.00225607]
[1728472771284,0.46693725,62222.0,62221.0,0.00225607]
[1728472771502,0.46694186,62222.0,62221.0,0.00225607]
[1728472771727,0.4669418,62222.0,62221.0,0.00225607]
[1728472772016,0.34652918,62222.0,62221.0,0.00225607]
[1728472772247,0.54268572,62222.0,62221.0,0.00225607]
[1728472773096,0.66310467,62222.0,62221.0,0.00225607]
[1728472773316,0.663105,62222.0,62221.0,0.00225607]
[1728472773535,0.54268572,62222.0,62221.0,0.00225607]
[1728472780220,0.47152918,62222.0,62221.0,0.00225607]
[1728472780480,0.66023978,62222.0,62221.0,0.00225607]
[1728472781438,0.65823978,62222.0,62221.0,0.00225607]
[1728472781659,0.66023978,62222.0,62221.0,0.00225607]
[1728472782063,0.65723978,62222.0,62221.0,0.00225607]
[1728472782279,0.65523978,62222.0,62221.0,0.00225607]
[1728472782490,0.65823978,62222.0,62221.0,0.00225607]
[1728472782919,0.65923978,62222.0,62221.0,0.00225607]
[1728472783133,0.65423978,62222.0,62221.0,0.00225607]
[1728472783336,0.65923978,62222.0,62221.0,0.00225607]
[1728472783813,0.65723978,62222.0,62221.0,0.00225607]
[1728472784803,0.58914768,62222.0,62221.0,0.00225607]
[1728472785028,0.54293978,62222.0,62221.0,0.00225607]
[1728472785235,0.46473978,62222.0,62221.0,0.00225607]
[1728472787007,0.36473978,62222.0,62221.0,0.00225607]
[1728472788360,0.17602918,62222.0,62221.0,0.00225607]
[1728472788569,0.17976664,62222.0,62221.0,0.00225607]
[1728472792242,0.32442607,62222.0,62221.0,0.00225607]
[1728472792421,0.32068861,62222.0,62221.0,0.00225607]
[1728472800930,0.17602918,62222.0,62221.0,0.00225607]
[1728472801188,0.17976664,62222.0,62221.0,0.00225607]
[1728472802899,0.35775437,62222.0,62221.0,0.00225607]
[1728472803132,0.17602918,62222.0,62221.0,0.00225607]
[1728472803363,0.17976664,62222.0,62221.0,0.00225607]
[1728472804353,0.35842063,62222.0,62221.0,0.00225607]
[1728472804579,0.35468317,62222.0,62221.0,0.00225607]
[1728472808664,0.23324884,62222.0,62221.0,0.00225607]
[1728472808912,0.35842063,62222.0,62221.0,0.00225607]
[1728472809166,0.35468317,62222.0,62221.0,0.00225607]
[1728472812349,0.17602918,62222.0,62221.0,0.00225607]
[1728472812583,0.17976664,62222.0,62221.0,0.00225607]
[1728472813052,0.38238751,62222.0,62221.0,0.00225607]
[1728472813303,0.37865005,62222.0,62221.0,0.00225607]
[1728472820100,0.40165005,62222.0,62221.0,0.00225607]
[1728472820822,0.49965005,62222.0,62221.0,0.00225607]
[1728472821102,0.00867247,62220.0,62219.0,0.00164]
[1728472821336,0.28991945,62220.0,62219.0,0.00164]
[1728472821569,0.30210746,62220.0,62219.0,0.00164]
[1728472822056,0.30211012,62220.0,62219.0,0.00164]
[1728472822313,0.13919794,62220.0,62219.0,0.00164]
[1728472823298,0.14019794,62220.0,62219.0,0.00164]
[1728472823776,0.30311012,62220.0,62219.0,0.00164]
[1728472824254,0.30308284,62220.0,62219.0,0.00164]
[1728472824515,0.14019794,62220.0,62219.0,0.00164]
[1728472824771,0.023,62219.0,62215.0,0.00412]
[1728472825022,0.12143433,62216.0,62215.0,0.00412]
[1728472825501,0.14027932,62216.0,62215.0,0.00412]
[1728472826544,0.33577932,62216.0,62215.0,0.00412]
[1728472826778,0.33677932,62216.0,62215.0,0.00412]
[1728472827491,0.33577932,62216.0,62215.0,0.00412]
[1728472827727,0.33577932,62216.0,62215.0,0.00212]
[1728472827961,0.34077932,62216.0,62215.0,0.00212]
[1728472828194,0.34477932,62216.0,62215.0,0.00212]
[1728472829651,0.34677932,62216.0,62215.0,0.00212]
[1728472830159,0.34669414,62216.0,62215.0,0.00609]
[1728472830413,0.00367247,62205.0,62204.0,0.09474]
[1728472830656,0.19745019,62205.0,62204.0,0.09474]
[1728472830898,0.20118765,62205.0,62204.0,0.09474]
[1728472831149,0.13899752,62205.0,62204.0,0.09474]
[1728472831394,0.21133267,62205.0,62204.0,0.09474]
[1728472831916,0.21133267,62205.0,62204.0,0.00864]
[1728472831917,0.24145538,62205.0,62204.0,0.00864]
[1728472832430,0.14499752,62205.0,62204.0,0.00864]
[1728472832681,0.14599752,62205.0,62204.0,0.01564]
[1728472832927,0.14499752,62205.0,62204.0,0.00864]
[1728472833150,0.14499752,62205.0,62204.0,0.01364]
[1728472833407,0.14499752,62205.0,62204.0,0.00864]
[1728472833616,0.14399752,62205.0,62204.0,0.00664]
[1728472833824,0.14399752,62205.0,62204.0,0.01164]
[1728472834314,0.14399752,62205.0,62204.0,0.00664]
[1728472834842,0.14399752,62205.0,62204.0,0.01164]
[1728472836287,0.21629981,62205.0,62204.0,0.01164]
[1728472836523,0.14399752,62205.0,62204.0,0.01164]
[1728472838062,0.00867247,62191.0,62190.0,0.001642]
[1728472838314,0.1531068,62191.0,62190.0,0.001642]
[1728472838564,0.00867247,62190.0,62184.0,0.00164]
[1728472839063,0.01928454,62190.0,62184.0,0.00164]
[1728472839570,0.02128454,62190.0,62184.0,0.00164]
[1728472839820,0.04428454,62190.0,62184.0,0.00164]
[1728472840069,0.04228454,62190.0,62184.0,0.00164]
[1728472841759,0.04428454,62190.0,62184.0,0.00164]
[1728472841987,0.04228454,62190.0,62184.0,0.00164]
[1728472842241,0.04428454,62190.0,62184.0,0.00164]
[1728472842433,0.04228454,62190.0,62184.0,0.00164]
[1728472842721,0.04428454,62190.0,62184.0,0.00164]
[1728472842967,0.16571887,62190.0,62184.0,0.00164]
[1728472844096,0.16371887,62190.0,62184.0,0.00164]
[1728472844442,0.25993476,62190.0,62184.0,0.00164]
[1728472845821,0.26193476,62190.0,62184.0,0.00164]
[1728472846318,0.25993476,62190.0,62184.0,0.00164]
[1728472847737,0.26193476,62190.0,62184.0,0.00164]
[1728472847979,0.25993476,62190.0,62184.0,0.00164]
[1728472848706,0.16371887,62190.0,62184.0,0.00164]
[1728472849631,0.16571887,62190.0,62184.0,0.00164]
[1728472852064,0.17671887,62190.0,62189.0,0.00364]
[1728472852471,0.16871887,62190.0,62189.0,0.00264]
[1728472852672,0.16371887,62190.0,62189.0,0.00264]
[1728472852872,0.17471887,62190.0,62189.0,0.00364]
[1728472855053,0.17671887,62190.0,62189.0,0.00364]
[1728472857121,0.26981887,62190.0,62189.0,0.00364]
[1728472857332,0.27063987,62190.0,62189.0,0.00364]
[1728472857540,0.26863987,62190.0,62189.0,0.00364]
[1728472858412,0.27063987,62190.0,62189.0,0.00364]
[1728472858832,0.26863987,62190.0,62189.0,0.00364]
[1728472860811,0.17753987,62190.0,62189.0,0.00364]
[1728472861552,0.17553987,62190.0,62189.0,0.00364]
[1728472862641,0.15627733,62190.0,62189.0,0.00364]
[1728472862853,0.15627733,62190.0,62189.0,0.08424]
[1728472862854,0.034843,62190.0,62189.0,0.08424]
[1728472863065,0.15127733,62190.0,62189.0,0.17484]
[1728472864523,0.15127733,62190.0,62189.0,0.17384]
[1728472864524,0.14627733,62190.0,62189.0,0.17384]
[1728472864751,0.15227733,62190.0,62189.0,0.17384]
[1728472864985,0.14627733,62190.0,62189.0,0.17384]
[1728472865414,0.14627733,62190.0,62189.0,0.17284]
[1728472865629,0.15627733,62190.0,62189.0,0.17384]
[1728472867223,0.15627733,62190.0,62189.0,0.00264]
[1728472867490,0.16127733,62190.0,62189.0,0.00264]
[1728472868360,0.16127733,62190.0,62184.0,0.08364]
[1728472868361,0.00867247,62185.0,62184.0,0.00164]
[1728472868605,0.13384426,62185.0,62184.0,0.00164]
[1728472869275,0.14534725,62185.0,62184.0,0.00164]
[1728472869697,0.14534725,62185.0,62184.0,0.00264]
[1728472871081,0.16834725,62185.0,62184.0,0.00264]
[1728472871521,0.16834725,62185.0,62184.0,0.00305076]
[1728472872457,0.24048337,62185.0,62184.0,0.00305076]
[1728472872901,0.24248337,62185.0,62184.0,0.00305076]
[1728472873110,0.17034725,62185.0,62184.0,0.00305076]
[1728472873345,0.24049118,62185.0,62184.0,0.00305076]
[1728472873571,0.1301068,62178.0,62177.0,0.00164]
[1728472873783,0.13384426,62178.0,62177.0,0.00164]
[1728472874017,0.1453473,62178.0,62177.0,0.00164]
[1728472874904,0.1463473,62178.0,62177.0,0.00664]
[1728472875117,0.1473473,62178.0,62177.0,0.01364]
[1728472875333,0.1703473,62178.0,62177.0,0.01364]
[1728472875574,0.21845977,62178.0,62177.0,0.01364]
[1728472875796,0.1693473,62178.0,62177.0,0.00664]
[1728472876008,0.1713473,62178.0,62177.0,0.01164]
[1728472876236,0.00367247,62168.0,62167.0,0.0783]
[1728472876449,0.12884426,62168.0,62167.0,0.0783]
[1728472876665,0.12884426,62168.0,62158.0,0.00164]
[1728472876666,0.00367247,62161.0,62160.0,0.0975]
[1728472876937,0.00367247,62161.0,62160.0,0.1752]
[1728472876938,0.1251068,62161.0,62160.0,0.1752]
[1728472877393,0.14032006,62161.0,62160.0,0.1752]
[1728472878879,0.14132006,62161.0,62160.0,0.1792]
[1728472879090,0.14232006,62161.0,62160.0,0.1792]
[1728472880138,0.14232006,62161.0,62160.0,0.17311]
[1728472881603,0.14232006,62161.0,62160.0,0.174752]
[1728472883337,0.14232006,62161.0,62160.0,0.083342]
[1728472884881,0.14232006,62161.0,62160.0,0.079342]
[1728472884882,0.14132006,62161.0,62160.0,0.079342]
[1728472885104,0.14032006,62161.0,62160.0,0.082342]
[1728472885569,0.14032006,62161.0,62160.0,0.079342]
[1728472886002,0.14032006,62161.0,62160.0,0.082342]
[1728472887499,0.14032006,62161.0,62160.0,0.004642]
[1728472892226,0.14032006,62161.0,62160.0,0.001642]
[1728472893071,0.14232006,62161.0,62160.0,0.001642]
[1728472893314,0.14732006,62161.0,62160.0,0.001642]
[1728472893522,0.15032006,62161.0,62160.0,0.001642]
[1728472893738,0.14832006,62161.0,62160.0,0.001642]
[1728472893954,0.14532006,62161.0,62160.0,0.001642]
[1728472894380,0.14632006,62161.0,62160.0,0.001642]
[1728472895034,0.14732006,62161.0,62160.0,0.001642]
[1728472896263,0.14632006,62161.0,62160.0,0.001642]
[1728472896475,0.14532006,62161.0,62160.0,0.001642]
[1728472897921,0.15355115,62161.0,62160.0,0.001642]
[1728472898344,0.15655115,62161.0,62160.0,0.001642]
[1728472898753,0.15955115,62161.0,62160.0,0.001642]